Cogmind - Beta 17 @@@ ROGUE MODE // 2026.07.04 @ 18:13:10 Player: Polariusz Result: Destroyed by YI-UF0 with YI-UF0's Doublenader Performance ------------- Evolutions (0) 0 Regions Visited (2) 400 Robots Destroyed (15) 75 Value Destroyed (453) 453 Prototype IDs (0) 0 Alien Tech Used (0) 0 Bonus (0) 0 TOTAL SCORE: 928 Bonus ------- None Cogmind --------- Core Integrity 0/250 Matter 186/300 Energy 82/100 System Corruption 0% Temperature Cool (0) Movement Core (250) Ox4 Location -10/Mines Parts ------- > --- POWER (1) -------- (None) > --- PROPULSION (2) --- (None) > --- UTILITY (2) ------ Medium Storage Unit Visual Processing Unit > --- WEAPON (2) ------- Heavy Assault Rifle > --- INVENTORY (10) --- Light Treads Signal Interpreter Medium Armor Plating Medium Armor Plating Particle Gun Particle Gun Mining Claw Peak State ------------ > --- POWER ------------ Light Nuclear Core > --- PROPULSION ------- Wheel Compact Wheel > --- UTILITY ---------- Medium Storage Unit Visual Processing Unit > --- WEAPON ----------- Particle Gun Particle Gun > --- INVENTORY -------- Ion Engine Light Treads Light Treads Compact Wheel Compact Wheel Signal Interpreter Heavy Assault Rifle Heavy Assault Rifle Grenade Launcher Mining Claw [Rating: 13] Favorites ----------- Power Ion Engine Engine Ion Engine Power Core Light Nuclear Core Propulsion Wheel Treads Light Treads Wheel Wheel Utility Medium Storage Unit Storage Medium Storage Unit Processor Visual Processing Unit Weapon Particle Gun Energy Gun Particle Gun Ballistic Gun Heavy Assault Rifle Launcher Rocket Launcher Slashing Weapon Mining Claw Build | -11 -10 -10 ------- Run | Yrd Mat Min Slots Evolved . | . . . Power . | . . . Propulsion . | . . . Utility . | . . . Weapon . | . . . Parts Attached 24 | 6 14 4 Power 3 | 1 2 . Engine 2 | 1 1 . Core 1 | . 1 . Reactor . | . . . Propulsion 6 | 2 4 . Treads 2 | . 2 . Leg . | . . . Wheel 4 | 2 2 . Hover . | . . . Flight . | . . . Utility 4 | 1 3 . Device . | . . . Storage 2 | 1 1 . Processor 2 | . 2 . Hackware . | . . . Protection . | . . . Artifact . | . . . Weapon 11 | 2 5 4 Energy Gun 5 | 2 3 . Energy Cannon . | . . . Ballistic Gun 2 | . . 2 Ballistic Cannon . | . . . Launcher 3 | . 1 2 Special Weapon . | . . . Impact Weapon . | . . . Slashing Weapon 1 | . 1 . Piercing Weapon . | . . . Special Melee Weapon . | . . . Unidentified Prototypes . | . . . Parts Lost 8 | . 1 7 Power 2 | . 1 1 Propulsion 3 | . . 3 Utility . | . . . Weapon 3 | . . 3 Highest Loss Streak 7 | . 1 7 To Critical Strikes . | . . . Average Backups 7 | 2 7 9 Power . | . . . Propulsion 2 | 1 3 1 Utility 1 | . . 3 Weapon 3 | . 3 4 Tool/Special . | . . . Unused Backups 5 | . 2 3 Power . | . . . Propulsion 1 | . 1 . Utility 3 | . . 3 Weapon 1 | . 1 . Tool/Special . | . . . Average Slot Usage (%) 90 | . 89 95 Engine 5 | . 7 . Core 3 | . 1 13 Treads 2 | . 2 . Wheel 24 | . 24 25 Storage 14 | . 14 14 Processor 10 | . 10 14 Energy Gun 26 | . 27 20 Peak Build Rating 13 | 6 13 13 Average Rating 8 | 4 8 12 On Entrance 6 | . 6 13 Avg Prop Armor Cover (%) . | . . . Naked Turns . | . . . Heaviest Build 23 | 13 21 23 Greatest Support 40 | 26 40 20 Greatest Overweight (x) 1 | . 1 1 Average Overweight (x) . | . . 1 Largest Inventory Capacity 10 | 8 10 10 Average Capacity 9 | 7 9 10 Most Carried 10 | 4 10 10 Average Carried 7 | 2 8 9 Final Capacity 10 | 8 10 10 Final Carried 10 | 3 10 7 Class Distribution -------------------- 78% | Mutant 21% | Scavenger-Mutant Dominant Class ---------------- Mutant | -10/Materials Scavenger-Mutant | -10/Mines Resources | -11 -10 -10 ----------- Run | Yrd Mat Min Matter Collected 455 | 173 282 . Remotely . | . . . Salvage Created 516 | . 516 . Parts 25 | . 25 . Haulers Intercepted 1 | . 1 . Recyclers Shooed . | . . . Parts Field Recycled . | . . . Retrieved Matter . | . . . Parts Self-Destructed . | . . . Prevented . | . . . Parts Restored . | . . . Kills | -11 -10 -10 ------- Run | Yrd Mat Min Combat Hostiles Destroyed 10 | . 10 . Guns 8 | . 8 . AOE 2 | . 2 . Classes Destroyed 5 | . 5 . Worker 1 | . 1 . Hauler 1 | . 1 . Recycler 1 | . 1 . Watcher 2 | . 2 . Grunt 10 | . 10 . Best Kill Streak 4 | . 4 . Combat Bots Only 4 | . 4 . Max Kills in Single Turn 1 | . 1 . Gunslinging . | . . . Exploded 1 | . 1 . Melee . | . . . Uniques/NPCs Destroyed . | . . . Combat | -11 -10 -10 -------- Run | Yrd Mat Min Hostile Shots Fired 71 | . 49 22 Missed 23 | . 16 7 Hits 48 | . 33 15 Projectile 48 | . 33 15 AOE 22 | . . 22 Damage Taken 1122 | . 455 667 Core 253 | . 105 148 Absorbed by Shields . | . . . Regen/Repaired (Parts) 27 | . 27 . Core Remaining (%) 100 | 100 . . Volleys Fired 55 | . 48 7 Largest 2 | . 2 2 Hottest 130 | . 130 66 Shots Fired 107 | . 96 11 Gun 98 | . 94 4 Cannon . | . . . Launcher 9 | . 2 7 Special . | . . . Kinetic 4 | . . 4 Thermal 94 | . 94 . Explosive 9 | . 2 7 Electromagnetic . | . . . Robot Hit Streak 16 | . 16 7 Robot Miss Streak 2 | . 2 2 Penetration Max . | . . . Secondary Targets . | . . . Shots Hit Robots 81 | . 72 9 Core Hits 34 | . 30 4 Critical Kills . | . . . Critical Parts Destroyed . | . . . Critical Strikes 4 | . 4 . Burn 4 | . 4 . Melee Attacks 1 | . 1 . Impact . | . . . Slashing 1 | . 1 . Piercing . | . . . Sneak Attacks . | . . . Combat Hostiles . | . . . Follow-up Attacks . | . . . Damage Inflicted 1281 | . 1157 124 Guns 1010 | . 947 63 Cannons . | . . . Explosions 271 | . 210 61 Melee . | . . . Ramming . | . . . Kinetic 63 | . . 63 Thermal 947 | . 947 . Explosive 271 | . 210 61 Electromagnetic . | . . . Impact . | . . . Slashing . | . . . Piercing . | . . . Highest Corruption . | . . . Average Corruption . | . . . Corruption Purged . | . . . Corruption Blocked . | . . . Overload Shots . | . . . Overflow Damage 15 | . 15 . Projectiles . | . . . Explosions 15 | . 15 . Melee . | . . . Knockbacks . | . . . Impact . | . . . Kinetic . | . . . Secondary . | . . . Self-Inflicted Damage 15 | . 15 . Shots 1 | . 1 . Rammed . | . . . Targets Rammed . | . . . Kicked . | . . . Crushed . | . . . Highest Temperature 300 | . 300 36 Average Temperature 99 | . 103 19 Received Heat Transfer 243 | . 243 . Effects 2 | . 2 . Interference 2 | . 2 . Siege Activations . | . . . Martial Activations . | . . . Shielding Activations . | . . . Robots Disrupted . | . . . Combat Hostiles . | . . . Robots Corrupted . | . . . Combat Hostiles . | . . . Parts Fried . | . . . Impact Corruptions . | . . . Robots Melted . | . . . Combat Hostiles . | . . . Parts Melted 9 | . 9 . Heat Transferred 2747 | . 2747 . Parts Sabotaged . | . . . Parts Stolen . | . . . Parts Stripped . | . . . Power Chain Reactions . | . . . Alert | -11 -10 -10 ------- Run | Yrd Mat Min Maximum Alert Level . | . . . Low Security (%) 100 | 100 100 100 Level 1 . | . . . Level 2 . | . . . Level 3 . | . . . Level 4 . | . . . Level 5 . | . . . High Security . | . . . Max Security . | . . . Peak Influence 135 | . 135 19 Initial 19 | . . 19 Average 48 | . 63 3 Influence Increases 368 | . 342 26 Destroy 0b10 Robot/C 200 | . 200 . Destroy 0b10 Robot/NC 25 | . 25 . Destroy Leader 56 | . 56 . Successful Hack 6 | . 6 . Disable Machine 30 | . 30 . Destroy Structure 36 | . 10 26 Lose Combat Pursuer 15 | . 15 . Influence Decreases 368 | . 290 78 Entered New Map 33 | . . 33 Time Decay 302 | . 280 22 Lost Part 33 | . 10 23 Squads Dispatched 1 | . 1 . Investigation . | . . . Extermination . | . . . Reinforcement 1 | . 1 . Assault . | . . . Garrison . | . . . Intercept . | . . . Searches Triggered . | . . . Construction Impeded . | . . . Haulers Reinforced . | . . . Active Scanning Responses . | . . . Cargo Convoy Interrupts . | . . . Stealth | -11 -10 -10 --------- Run | Yrd Mat Min Distress Signals 1 | . 1 . Communications Jammed . | . . . Distress Signals . | . . . Times Spotted 18 | . 16 2 Peak Tracking Total 4 | . 4 1 Tactical Retreats 2 | . 1 1 Traps | -11 -10 -10 ------- Run | Yrd Mat Min Traps Triggered . | . . . Indirectly . | . . . Trap Hack Attempts . | . . . Triggered . | . . . Disarmed . | . . . Reprogrammed . | . . . Reused . | . . . Traps Extracted . | . . . Installed . | . . . Triggered . | . . . Machines | -11 -10 -10 ---------- Run | Yrd Mat Min Machines Disabled 2 | . 2 . Max in Single Turn 1 | . 1 . Machines Repaired . | . . . Machines Dismantled . | . . . Machines Sabotaged . | . . . Overloaded Fab Kills . | . . . Hacking | -11 -10 -10 --------- Run | Yrd Mat Min Machines Accessed 2 | . 2 . Terminals . | . . . Fabricators . | . . . Repair Stations 1 | . 1 . Recycling Units 1 | . 1 . Scanalyzers . | . . . Garrison Access . | . . . Total Hacks 5 | . 5 . Successful 4 | . 4 . Failed 1 | . 1 . Catastrophic . | . . . Database Lockouts . | . . . Manual . | . . . Terminals . | . . . Fabricators . | . . . Repair Stations 3 | . 3 . Recycling Units 2 | . 2 . Scanalyzers . | . . . Garrison Access . | . . . Terminal Hacks . | . . . Fabricator Hacks . | . . . Repair Station Hacks 3 | . 3 . Scan Component 1 | . 1 . Repair 1 | . 1 . Refit 1 | . 1 . Recycling Unit Hacks 1 | . 1 . Retrieve Components 1 | . 1 . Scanalyzer . | . . . Garrison Access Hacks . | . . . Unauthorized Hacks . | . . . Terminals . | . . . Fabricators . | . . . Repair Stations . | . . . Recycling Units . | . . . Scanalyzers . | . . . Garrison Access . | . . . Data Cores Recovered . | . . . Used . | . . . Hacking Detections . | . . . Full Trace Events . | . . . Feedback Events . | . . . Feedback Blocked . | . . . Robot Schematics Acquired . | . . . Robots Built . | . . . Authchips . | . . . Time . | . . . Total Robot Build Rating . | . . . Part Schematics Acquired . | . . . Parts Built . | . . . Authchips . | . . . Time . | . . . Total Part Build Rating . | . . . Part Studies Acquired . | . . . Parts Repaired 1 | . 1 . Time 26 | . 26 . Parts Recycled . | . . . Recycled Matter . | . . . Retrieved Matter . | . . . Retrieved Components . | . . . Parts Scanalyzed . | . . . Part Schematics Acquired . | . . . Parts Damaged . | . . . Bothacking | -11 -10 -10 ------------ Run | Yrd Mat Min Used RIF Installer . | . . . Robots Hacked . | . . . Non-combat . | . . . Combat . | . . . Robot Hacks Applied . | . . . Relay Couplers Released . | . . . Fabnet Peak Effective % . | . . . Robots Rewired . | . . . Allies Hacked . | . . . Hacks Repelled . | . . . Allies | -11 -10 -10 -------- Run | Yrd Mat Min Total Allies . | . . . Largest Group . | . . . Highest-Rated Group . | . . . Highest-Rated Ally . | . . . Total Orders . | . . . Ally Attacks . | . . . Total Damage . | . . . Kills . | . . . Allies Corrupted . | . . . Allies Melted . | . . . Intel | -11 -10 -10 ------- Run | Yrd Mat Min Active Infowar (turns) 577 | . 419 158 Optics 577 | . 419 158 Robot Analysis Total . | . . . Derelict Logs Recovered . | . . . Drone Launches . | . . . Drone Recoveries . | . . . Exploration | -11 -10 -10 ------------- Run | Yrd Mat Min Turns Passed 902 | 53 691 158 Spaces Moved 614 | 46 434 134 Core 12 | 12 . . Treads 19 | . 19 . Legs . | . . . Wheels 583 | 34 415 134 Hover . | . . . Flight . | . . . Fastest Speed 50 | 50 90 95 Average Speed 92 | 79 93 95 Slowest Speed 160 | 90 160 95 Overloaded Moves . | . . . Propulsion Burnouts . | . . . Robots Hopped . | . . . Potential Cave-ins . | . . . Cave-ins Triggered . | . . . Exploration Rate (%) 29 | 2 51 35 Regions Visited 2 Branch Regions 1 Pre-discovered Areas . | . . . Known Exits Taken . | . . . Unknown Exits Taken 2 | 1 1 . Scrap Searched 1 | . . 1 Spaces Dug . | . . . Terrain Destroyed 44 | . 7 37 Melee . | . . . Projectile . | . . . AOE 44 | . 7 37 Terrain Rammed . | . . . Walls Destroyed . | . . . Machines Disabled . | . . . Actions | -11 -10 -10 --------- Run | Yrd Mat Min Total 835 | 62 620 153 Wait 98 | 2 90 6 Move 612 | 45 433 134 Hop . | . . . Pick Up 26 | 9 17 . Fast Attach 4 | . 4 . Attach 11 | 6 2 3 Detach . | . . . Swap 15 | . 12 3 Drop 13 | . 13 . Fire 55 | . 48 7 Melee 1 | . 1 . Ram . | . . . Kick . | . . . Crush . | . . . Escape Stasis . | . . . Rewire . | . . . Trap . | . . . Miscellaneous . | . . . Route ------- -11/Scrapyard -10/Materials (discovered 3 exits: [*Mat x2] / [*Min]) -10/Mines History --------- Turn | Location | Event 20 | -11/Scrapyard | Discovered new exit (range 16) 54 | -11/Scrapyard | Entered Materials 317 | -10/Materials | Build established: Mutant 535 | -10/Materials | Discovered new exit (range 7) 537 | -10/Materials | Discovered new exit (range 18) 572 | -10/Materials | Repaired Wheel 701 | -10/Materials | Discovered new exit (range 16) 745 | -10/Materials | Entered Mines 888 | -10/Mines | Core integrity fell below 50% 900 | -10/Mines | Core integrity fell below 20% 903 | -10/Mines | Destroyed by YI-UF0 with YI-UF0's Doublenader Last Messages --------------- 00800_ Searching scrap... 00800_ Found Core Shielding. 00800_ Found 44 Matter. 00859_ K-01 Serf collects debris. 00883_ Wheel destroyed. 00887_ The unstable cave ceiling collapses. 00889_ YI-UF0 mumbles something. 00889_ Rocket Launcher destroyed. 00891_ T-07 Excavator destroyed. 00893_ The unstable cave ceiling collapses. 00893_ Wheel destroyed. 00894_ The unstable cave ceiling collapses. 00895_ Rocket Launcher destroyed. 00895_ Lgt. Nuclear Core destroyed. 00897_ The unstable cave ceiling collapses. 00899_ Hvy. Assault Rifle destroyed. 00899_ YI-UF0: "BAROOM!" 00899_ K-01 Serf destroyed. 00901_ The unstable cave ceiling collapses. 00903_ Lgt. Treads destroyed. Map ----- +----------------------------------------------------+ | | | | | | | ?????????????????????????????????????????????????? | | ????????????#?????###???????????????????????####?? | | ??????###??? ##### ##????????????????????### ##? | | ?????? ?? #???????????????????## ## | | ??????? """ #????????????######## | | ???????? """ #????????????# | | ????????? """ #??????????### ###### | | ????????? ##????????## #????## | | ?????????? #????????# #??##?## | | ??????????? ?????????# ##?# ##?## # | | ???????????? ?????????## #### #??## ## | | ????????????? ????????### ### #???# ## | | ?????????????# #????????## ## #???# ## | | ????????????## #??????#### ### #????# | | ????????????# #?????## ### ##????# ## | | ????????????# ##????# ###?# #?????# ## | | ????????????# ###### ###???## ##?????# ## | | ????????????## ## # ####???## #??????# ## | | ????????????## # #####k #??????# #? | | ???????###### #??????? ?? | | ??????## ###??????? ?? | | ??????# #######????????? ?? | | ?????## @ #??????????????? ?? | | ?????# ##??????????????? ?? | | ??# #?????????????????? | | ??# ### ##?????????????????? | | ??# #??## #?????????????????? | | ??# ###????## ## #?????????????????? | | ??## #????????## ## ###?????????????????? | | ???# ??????????# ##???????????????????? | | ???# ???????????# ## #????????????????????? | | ???#???????????# ### #????????????????????? | | ???????????????# ##? # ????????????????????? | | ???????????????? ??? #????????????????????? | | ???????????????# ??# ## g # ????????????????????? | | ???????????????# ?? ????????????????????? | | ???????????????# ?? # ????????????????????? | | ???????????????# ? =????????????????????? | | ???????????????# ???? % !%|???????????????????? | | ???????????????? ?????? = ?????????????????????? | | ???????????????? ?????? ??????????????????????? | | ??????????????????????? #??????????????????????? | | ??????????????????????? #???????????????????????? | | ?????????????????????????????????????????????????? | | ?????????????????????????????????????????????????? | | ?????????????????????????????????????????????????? | | ?????????????????????????????????????????????????? | +----------------------------------------------------+ Best States ------------- Heat Dissipation 25 Energy Generation 14 Energy Capacity 250 Matter Stores 300 Matter Capacity 300 Sight Range 18 Terrain Scan Density 10 Evasion (%) 50 Recoil Reduction 2 Item Schematics ----------------- None Robot Schematics ------------------ None Fabricated ------------ Nothing Repaired ---------- Wheel | 32% | -10/Materials Studied --------- None Alien Tech Used ----------------- None Achievements -------------- None Challenges ------------ None Game ------ Seed PointyGrenadeWarhead Manual? 0 Play Time 00:12:59 Cumulative 64.4 hours Start 2026.07.04 @ 18:02:07 End 2026.07.04 @ 18:13:10 Sessions 1 Manual Loads 0 Difficulty Rogue Special Mode None Game No. 69 Rogue 69 Adventurer 0 Explorer 0 Win Type - Total 2 Types 2/0/0/0/0/0/0/0/0/0 Lore% 47 Gallery% 32 Achievement% 23 Wizard Run 0 Options --------- Layout 1 ASCII 0 Keyboard 0 Movement Mouse Keybinds 0 Fullscreen 1 Font 24/Smallcaps Map View 50x35 Zoom Use 0% Tactical HUD 1 Map Filters NONE Filters NONE Steam 1 RUN: 32b1f33b-5112-4f56-b113-5c03e9e76572